[Event "*** Titled Tuesday Blitz"]
[Site "Chess.com"]
[Date "2020.12.01"]
[Round "3"]
[White "Road2GM3000"]
[Black "kidagent"]
[Result "1-0"]
[WhiteElo "2134"]
[BlackElo "2307"]
[TimeControl "180+1"]
[EndTime "10:28:10 PST"]
[Termination "Road2GM3000 won by checkmate"]

1. d4 {[%clk 0:03:00.9]} 1... d5 {[%clk 0:02:59.9]} 2. c4 {[%clk 0:03:01.5]}
2... c6 {[%clk 0:03:00.4]} 3. Nc3 {[%clk 0:03:01.9]} 3... dxc4 {[%clk
0:03:00.2]} 4. g3 {[%clk 0:02:57]} 4... Nf6 {[%clk 0:02:58.6]} 5. Bg2 {[%clk
0:02:57.3]} 5... g6 {[%clk 0:02:53.7]} 6. Nf3 {[%clk 0:02:57.8]} 6... Bg7 {[%clk
0:02:53.8]} 7. O-O {[%clk 0:02:57.1]} 7... O-O {[%clk 0:02:54.4]} 8. Ne5 {[%clk
0:02:57.6]} 8... Be6 {[%clk 0:02:50.4]} 9. e4 {[%clk 0:02:54.8]} 9... Nfd7
{[%clk 0:02:46.6]} 10. f4 {[%clk 0:02:54.6]} 10... Nxe5 {[%clk 0:02:45.3]} 11.
fxe5 {[%clk 0:02:55.5]} 11... Qb6 {[%clk 0:02:36.5]} 12. Rf2 {[%clk 0:02:48.5]}
12... Rd8 {[%clk 0:02:33.3]} 13. Be3 {[%clk 0:02:49]} 13... Bxe5 {[%clk
0:02:30.9]} 14. Qf1 {[%clk 0:02:42.1]} 14... Bxd4 {[%clk 0:02:28.1]} 15. Bxd4
{[%clk 0:02:42.1]} 15... Rxd4 {[%clk 0:02:23.3]} 16. e5 {[%clk 0:02:29.8]} 16...
Nd7 {[%clk 0:02:16.2]} 17. Re1 {[%clk 0:02:30.3]} 17... Rd2 {[%clk 0:02:11.9]}
18. Re2 {[%clk 0:02:16.1]} 18... Rxe2 {[%clk 0:02:09.5]} 19. Qxe2 {[%clk
0:02:17]} 19... Nc5 {[%clk 0:01:59.7]} 20. Be4 {[%clk 0:02:11.1]} 20... Nxe4
{[%clk 0:01:55.4]} 21. Nxe4 {[%clk 0:02:12]} 21... Rd8 {[%clk 0:01:51.4]} 22.
Ng5 {[%clk 0:02:10.6]} 22... Bd5 {[%clk 0:01:33.4]} 23. e6 {[%clk 0:02:09.2]}
23... f6 {[%clk 0:01:31.1]} 24. Nf7 {[%clk 0:02:09.6]} 24... Rf8 {[%clk
0:01:21.4]} 25. Qg4 {[%clk 0:01:49.2]} 25... Kg7 {[%clk 0:01:12.5]} 26. h4
{[%clk 0:01:45.6]} 26... Bxe6 {[%clk 0:01:09.9]} 27. Qxe6 {[%clk 0:01:44.2]}
27... Rxf7 {[%clk 0:01:10.1]} 28. h5 {[%clk 0:01:44.6]} 28... gxh5 {[%clk
0:01:02.2]} 29. Kg2 {[%clk 0:01:27.9]} 29... Qd4 {[%clk 0:00:53.2]} 30. Kf1
{[%clk 0:01:06.1]} 30... Qd3+ {[%clk 0:00:51.6]} 31. Re2 {[%clk 0:01:00.9]}
31... Qxg3 {[%clk 0:00:49.9]} 32. Rg2 {[%clk 0:01:00.7]} 32... Qxg2+ {[%clk
0:00:43]} 33. Kxg2 {[%clk 0:01:01.6]} 33... Kf8 {[%clk 0:00:41.8]} 34. Qc8+
{[%clk 0:00:58.5]} 34... Kg7 {[%clk 0:00:40.7]} 35. Qxb7 {[%clk 0:00:59.1]}
35... e5 {[%clk 0:00:39.4]} 36. Qxc6 {[%clk 0:00:58.7]} 36... Kg6 {[%clk
0:00:39.7]} 37. Qxc4 {[%clk 0:00:58.5]} 37... Rg7 {[%clk 0:00:37]} 38. Kf3
{[%clk 0:00:54]} 38... h6 {[%clk 0:00:33.2]} 39. b4 {[%clk 0:00:52.5]} 39... Kf5
{[%clk 0:00:31.3]} 40. b5 {[%clk 0:00:46]} 40... Rg4 {[%clk 0:00:28.4]} 41. Qc8+
{[%clk 0:00:45.9]} 41... Kg5 {[%clk 0:00:28.3]} 42. Qg8+ {[%clk 0:00:44]} 42...
Kh4 {[%clk 0:00:28.1]} 43. Qf7 {[%clk 0:00:42.2]} 43... Rf4+ {[%clk 0:00:23]}
44. Ke3 {[%clk 0:00:42.1]} 44... Kg4 {[%clk 0:00:21.8]} 45. Qxa7 {[%clk
0:00:40.8]} 45... h4 {[%clk 0:00:21.9]} 46. Qg7+ {[%clk 0:00:36.7]} 46... Kf5
{[%clk 0:00:20.5]} 47. Qxh6 {[%clk 0:00:35.5]} 47... Rb4 {[%clk 0:00:19]} 48.
Qh5+ {[%clk 0:00:30.1]} 48... Ke6 {[%clk 0:00:18.8]} 49. Qe8+ {[%clk 0:00:27.6]}
49... Kd5 {[%clk 0:00:19]} 50. Qc6# {[%clk 0:00:27.2]} 1-0

[Event "*** Titled Tuesday Blitz"]
[Site "Chess.com"]
[Date "2020.12.01"]
[Round "3"]
[White "Euwe1234"]
[Black "sergiochess83"]
[Result "1-0"]
[WhiteElo "2560"]
[BlackElo "2794"]
[TimeControl "180+1"]
[EndTime "10:28:13 PST"]
[Termination "Euwe1234 won by resignation"]

1. e4 {[%clk 0:03:00.9]} 1... c5 {[%clk 0:02:58.3]} 2. Nf3 {[%clk 0:02:59.5]}
2... d6 {[%clk 0:02:58.5]} 3. d4 {[%clk 0:02:57.7]} 3... cxd4 {[%clk 0:02:59.1]}
4. Nxd4 {[%clk 0:02:58.6]} 4... Nf6 {[%clk 0:02:59.4]} 5. Nc3 {[%clk 0:02:58.5]}
5... a6 {[%clk 0:03:00.3]} 6. Bg5 {[%clk 0:02:58.3]} 6... Nbd7 {[%clk
0:02:59.2]} 7. f3 {[%clk 0:02:58]} 7... Qb6 {[%clk 0:02:44]} 8. Nb3 {[%clk
0:02:53.4]} 8... e6 {[%clk 0:02:44.1]} 9. Qd2 {[%clk 0:02:52.6]} 9... Be7 {[%clk
0:02:43.3]} 10. Be2 {[%clk 0:02:44.4]} 10... O-O {[%clk 0:02:06.8]} 11. g4
{[%clk 0:02:41.3]} 11... Qc7 {[%clk 0:02:03.7]} 12. h4 {[%clk 0:02:39.5]} 12...
b5 {[%clk 0:02:02.7]} 13. a3 {[%clk 0:02:38.4]} 13... Ne5 {[%clk 0:01:58.7]} 14.
O-O-O {[%clk 0:02:35.7]} 14... Rb8 {[%clk 0:01:52.5]} 15. Bxf6 {[%clk
0:02:14.4]} 15... Bxf6 {[%clk 0:01:35.5]} 16. Qxd6 {[%clk 0:02:02.4]} 16... Qxd6
{[%clk 0:01:32.7]} 17. Rxd6 {[%clk 0:02:03.3]} 17... Nc4 {[%clk 0:01:27.5]} 18.
Bxc4 {[%clk 0:02:02.4]} 18... bxc4 {[%clk 0:01:26.7]} 19. Na5 {[%clk 0:02:00.9]}
19... Be5 {[%clk 0:01:01.3]} 20. Rdd1 {[%clk 0:01:53.5]} 20... Bxc3 {[%clk
0:00:47]} 21. bxc3 {[%clk 0:01:52.9]} 21... Rb5 {[%clk 0:00:47.9]} 22. Nxc4
{[%clk 0:01:50]} 22... Rc5 {[%clk 0:00:48.2]} 23. Nd6 {[%clk 0:01:39.7]} 23...
Rxc3 {[%clk 0:00:47.2]} 24. Rd3 {[%clk 0:01:38]} 24... Rc5 {[%clk 0:00:43.2]}
25. Rhd1 {[%clk 0:01:25.4]} 25... h5 {[%clk 0:00:38.4]} 26. g5 {[%clk 0:01:24]}
26... e5 {[%clk 0:00:31.4]} 27. Rd5 {[%clk 0:01:20.1]} 27... Rxd5 {[%clk
0:00:24.1]} 28. Rxd5 {[%clk 0:01:21]} 28... f6 {[%clk 0:00:23.9]} 29. gxf6
{[%clk 0:01:19.1]} 29... gxf6 {[%clk 0:00:23.2]} 30. Nxc8 {[%clk 0:01:18.9]}
30... Rxc8 {[%clk 0:00:22.8]} 31. Rd6 {[%clk 0:01:19.3]} 31... Kf7 {[%clk
0:00:21.8]} 32. Kd2 {[%clk 0:01:16.7]} 32... a5 {[%clk 0:00:15.1]} 33. Kd3
{[%clk 0:01:03.1]} 33... Rg8 {[%clk 0:00:07.7]} 34. Ra6 {[%clk 0:00:59.3]} 34...
Rg3 {[%clk 0:00:07.7]} 35. Ke3 {[%clk 0:00:58]} 35... Rh3 {[%clk 0:00:08.1]} 36.
Rxa5 {[%clk 0:00:57.9]} 36... Rxh4 {[%clk 0:00:08.5]} 37. Rd5 {[%clk 0:00:55.9]}
37... Rh1 {[%clk 0:00:08.1]} 38. a4 {[%clk 0:00:53]} 38... h4 {[%clk 0:00:08.4]}
39. Kf2 {[%clk 0:00:52]} 39... Rc1 {[%clk 0:00:07]} 40. Rc5 {[%clk 0:00:50.7]}
40... Ke6 {[%clk 0:00:05.8]} 41. Rc4 {[%clk 0:00:50.5]} 41... Rd1 {[%clk
0:00:02.2]} 42. Rc6+ {[%clk 0:00:47.6]} 42... Ke7 {[%clk 0:00:01.9]} 43. Kg2
{[%clk 0:00:44.8]} 43... Rd2+ {[%clk 0:00:02.2]} 44. Kh3 {[%clk 0:00:44.2]}
44... Rf2 {[%clk 0:00:02.8]} 45. Rc3 {[%clk 0:00:43.4]} 45... Rf1 {[%clk
0:00:03]} 46. Kxh4 {[%clk 0:00:43.1]} 46... Rg1 {[%clk 0:00:03.5]} 47. Ra3
{[%clk 0:00:39.7]} 1-0

[Event "*** Titled Tuesday Blitz"]
[Site "Chess.com"]
[Date "2020.12.01"]
[Round "3"]
[White "Vincent_Vega95"]
[Black "sorito"]
[Result "1-0"]
[WhiteElo "2765"]
[BlackElo "2488"]
[TimeControl "180+1"]
[EndTime "10:28:13 PST"]
[Termination "Vincent_Vega95 won on time"]

1. d4 {[%clk 0:03:00.9]} 1... e6 {[%clk 0:02:58.9]} 2. c4 {[%clk 0:03:01]} 2...
b6 {[%clk 0:02:59.1]} 3. Nf3 {[%clk 0:03:00.1]} 3... Bb7 {[%clk 0:02:58.8]} 4.
g3 {[%clk 0:02:59.2]} 4... Bb4+ {[%clk 0:02:57.9]} 5. Nbd2 {[%clk 0:02:57]} 5...
f5 {[%clk 0:02:55.5]} 6. Bg2 {[%clk 0:02:56.6]} 6... Nf6 {[%clk 0:02:55.7]} 7.
O-O {[%clk 0:02:55.5]} 7... O-O {[%clk 0:02:55.6]} 8. a3 {[%clk 0:02:55.7]} 8...
Be7 {[%clk 0:02:52]} 9. b4 {[%clk 0:02:54.3]} 9... a5 {[%clk 0:02:49.1]} 10. b5
{[%clk 0:02:54.7]} 10... Ne4 {[%clk 0:02:44.7]} 11. Qc2 {[%clk 0:02:45.6]} 11...
Nxd2 {[%clk 0:02:36.8]} 12. Nxd2 {[%clk 0:02:26.7]} 12... Bxg2 {[%clk 0:02:36]}
13. Kxg2 {[%clk 0:02:27.6]} 13... d6 {[%clk 0:02:15.1]} 14. e4 {[%clk
0:02:23.8]} 14... Nd7 {[%clk 0:02:08.9]} 15. exf5 {[%clk 0:02:12.8]} 15... exf5
{[%clk 0:02:05.6]} 16. Nf3 {[%clk 0:02:03.2]} 16... Qc8 {[%clk 0:01:20.7]} 17.
Re1 {[%clk 0:01:57.4]} 17... Rf7 {[%clk 0:01:14.2]} 18. Bg5 {[%clk 0:01:54.1]}
18... Bf8 {[%clk 0:01:09.7]} 19. h4 {[%clk 0:01:52]} 19... Qb7 {[%clk
0:01:07.7]} 20. d5 {[%clk 0:01:19.3]} 20... Nc5 {[%clk 0:01:06.9]} 21. Nd4
{[%clk 0:01:18]} 21... Ne4 {[%clk 0:00:56.6]} 22. f3 {[%clk 0:01:18.1]} 22...
Nc5 {[%clk 0:00:47.5]} 23. Nxf5 {[%clk 0:01:03.4]} 23... g6 {[%clk 0:00:30.4]}
24. Nh6+ {[%clk 0:01:03.4]} 24... Bxh6 {[%clk 0:00:30.2]} 25. Bxh6 {[%clk
0:01:04.3]} 25... Nd7 {[%clk 0:00:25.3]} 26. f4 {[%clk 0:00:49.6]} 26... Nf6
{[%clk 0:00:25]} 27. Qe2 {[%clk 0:00:49.3]} 27... Qc8 {[%clk 0:00:16.8]} 28. Bg5
{[%clk 0:00:38.4]} 28... Ng4 {[%clk 0:00:14]} 29. Qe6 {[%clk 0:00:23.4]} 29...
h6 {[%clk 0:00:10.6]} 30. Bxh6 {[%clk 0:00:22.9]} 30... Nxh6 {[%clk 0:00:08.4]}
31. Qxg6+ {[%clk 0:00:23]} 31... Rg7 {[%clk 0:00:07.5]} 32. Qxh6 {[%clk
0:00:23.5]} 32... Qf8 {[%clk 0:00:04.8]} 33. Re6 {[%clk 0:00:21]} 33... Qf5
{[%clk 0:00:02.6]} 34. Rae1 {[%clk 0:00:20.1]} 34... Rf8 {[%clk 0:00:01.4]} 35.
R1e2 {[%clk 0:00:19.3]} 1-0

[Event "*** Titled Tuesday Blitz"]
[Site "Chess.com"]
[Date "2020.12.01"]
[Round "3"]
[White "AniJak"]
[Black "DenishevM"]
[Result "1/2-1/2"]
[WhiteElo "2385"]
[BlackElo "2583"]
[TimeControl "180+1"]
[EndTime "10:28:13 PST"]
[Termination "Game drawn by repetition"]

1. e4 {[%clk 0:03:00.9]} 1... c5 {[%clk 0:02:59.1]} 2. Nf3 {[%clk 0:03:01]} 2...
d6 {[%clk 0:02:59.6]} 3. d4 {[%clk 0:03:00.8]} 3... cxd4 {[%clk 0:03:00.5]} 4.
Nxd4 {[%clk 0:03:00.8]} 4... Nf6 {[%clk 0:03:00.3]} 5. Nc3 {[%clk 0:03:01.2]}
5... a6 {[%clk 0:03:00.8]} 6. h3 {[%clk 0:03:01.6]} 6... e5 {[%clk 0:03:00.3]}
7. Nde2 {[%clk 0:03:00.4]} 7... Be6 {[%clk 0:02:59.6]} 8. g4 {[%clk 0:03:00.1]}
8... b5 {[%clk 0:02:57.2]} 9. Bg2 {[%clk 0:02:57.3]} 9... Nbd7 {[%clk
0:02:57.6]} 10. O-O {[%clk 0:02:53.8]} 10... Nb6 {[%clk 0:02:57.9]} 11. f4
{[%clk 0:02:48]} 11... Be7 {[%clk 0:02:52.7]} 12. f5 {[%clk 0:02:46.2]} 12...
Bd7 {[%clk 0:02:47.3]} 13. Ng3 {[%clk 0:02:40.8]} 13... h6 {[%clk 0:02:45.6]}
14. Kh2 {[%clk 0:02:33.7]} 14... b4 {[%clk 0:02:38.7]} 15. Nce2 {[%clk
0:02:26.5]} 15... Bc6 {[%clk 0:02:37]} 16. b3 {[%clk 0:02:19.8]} 16... Nfd7
{[%clk 0:02:22.7]} 17. Bb2 {[%clk 0:02:18.1]} 17... Nc5 {[%clk 0:02:20.6]} 18.
a3 {[%clk 0:02:11.7]} 18... a5 {[%clk 0:02:18.4]} 19. f6 {[%clk 0:02:02.1]}
19... Bxf6 {[%clk 0:02:03.8]} 20. axb4 {[%clk 0:02:00.1]} 20... axb4 {[%clk
0:02:00.6]} 21. Rxa8 {[%clk 0:02:00.1]} 21... Bxa8 {[%clk 0:01:57.1]} 22. Nf5
{[%clk 0:01:59.9]} 22... O-O {[%clk 0:01:51.6]} 23. Neg3 {[%clk 0:01:58.7]}
23... Bg5 {[%clk 0:01:22.5]} 24. Nxd6 {[%clk 0:01:39.7]} 24... Bf4 {[%clk
0:01:15.9]} 25. Rxf4 {[%clk 0:01:25.2]} 25... exf4 {[%clk 0:01:13.4]} 26. Nh5
{[%clk 0:01:25.7]} 26... Ne6 {[%clk 0:01:07.7]} 27. Qd2 {[%clk 0:01:13]} 27...
Qc7 {[%clk 0:00:49.2]} 28. Nxf4 {[%clk 0:00:55.2]} 28... Nxf4 {[%clk 0:00:25.6]}
29. Qxf4 {[%clk 0:00:56.1]} 29... Qxc2 {[%clk 0:00:24.5]} 30. Qe5 {[%clk
0:00:56.4]} 30... f6 {[%clk 0:00:20.2]} 31. Qe6+ {[%clk 0:00:55.9]} 31... Kh8
{[%clk 0:00:20.5]} 32. Bd4 {[%clk 0:00:48.8]} 32... Nc8 {[%clk 0:00:10.7]} 33.
Nf7+ {[%clk 0:00:44.6]} 33... Kh7 {[%clk 0:00:08.2]} 34. Qf5+ {[%clk 0:00:40.2]}
34... Kg8 {[%clk 0:00:08.4]} 35. Nxh6+ {[%clk 0:00:39.1]} 35... gxh6 {[%clk
0:00:07.1]} 36. Qg6+ {[%clk 0:00:39.3]} 36... Kh8 {[%clk 0:00:07.7]} 37. Qxh6+
{[%clk 0:00:36.9]} 37... Kg8 {[%clk 0:00:08]} 38. Qg6+ {[%clk 0:00:37.1]} 38...
Kh8 {[%clk 0:00:08.2]} 39. Qh6+ {[%clk 0:00:19.3]} 39... Kg8 {[%clk 0:00:08.5]}
40. Qg6+ {[%clk 0:00:19.5]} 40... Kh8 {[%clk 0:00:08.8]} 41. Qh6+ {[%clk
0:00:18.9]} 1/2-1/2

[Event "*** Titled Tuesday Blitz"]
[Site "Chess.com"]
[Date "2020.12.01"]
[Round "3"]
[White "rynos0411"]
[Black "Mikhail_Golubev"]
[Result "1-0"]
[WhiteElo "2369"]
[BlackElo "2551"]
[TimeControl "180+1"]
[EndTime "10:28:13 PST"]
[Termination "rynos0411 won on time"]

1. d4 {[%clk 0:02:59.3]} 1... Nf6 {[%clk 0:02:59.2]} 2. c4 {[%clk 0:02:59.7]}
2... g6 {[%clk 0:02:59.4]} 3. Nc3 {[%clk 0:02:59.3]} 3... Bg7 {[%clk 0:02:59.7]}
4. e4 {[%clk 0:02:57.4]} 4... d6 {[%clk 0:02:59.8]} 5. h3 {[%clk 0:02:56.9]}
5... Nbd7 {[%clk 0:02:54.6]} 6. Be3 {[%clk 0:02:54.8]} 6... e5 {[%clk
0:02:47.8]} 7. d5 {[%clk 0:02:54.4]} 7... Nc5 {[%clk 0:02:46.9]} 8. Qc2 {[%clk
0:02:48.1]} 8... a5 {[%clk 0:02:43.3]} 9. g4 {[%clk 0:02:45]} 9... h5 {[%clk
0:02:40.1]} 10. g5 {[%clk 0:02:44.7]} 10... Nh7 {[%clk 0:02:40.1]} 11. h4 {[%clk
0:02:43.2]} 11... f6 {[%clk 0:02:38.2]} 12. gxf6 {[%clk 0:02:42.2]} 12... Bxf6
{[%clk 0:02:36.2]} 13. Be2 {[%clk 0:02:34.1]} 13... Bxh4 {[%clk 0:02:32.4]} 14.
Nf3 {[%clk 0:02:30.6]} 14... Bf6 {[%clk 0:02:27.1]} 15. O-O-O {[%clk 0:02:27.7]}
15... Bg4 {[%clk 0:02:22]} 16. Rdg1 {[%clk 0:02:06.3]} 16... Bxf3 {[%clk
0:02:08.7]} 17. Bxf3 {[%clk 0:02:07.2]} 17... Bg5 {[%clk 0:02:06.4]} 18. Qd2
{[%clk 0:02:00.6]} 18... Bxe3 {[%clk 0:02:03.4]} 19. Qxe3 {[%clk 0:02:01.5]}
19... Qf6 {[%clk 0:02:00.7]} 20. Rxg6 {[%clk 0:01:57.5]} 20... Qf4 {[%clk
0:01:45.9]} 21. Bxh5 {[%clk 0:01:42.6]} 21... Qxe3+ {[%clk 0:01:45.4]} 22. fxe3
{[%clk 0:01:43.5]} 22... O-O-O {[%clk 0:01:33.9]} 23. Be2 {[%clk 0:01:03.4]}
23... Nf8 {[%clk 0:01:00.1]} 24. Rxh8 {[%clk 0:00:30.5]} 24... Nxg6 {[%clk
0:00:59.4]} 25. Bg4+ {[%clk 0:00:30.9]} 25... Nd7 {[%clk 0:00:58.9]} 26. Rh7
{[%clk 0:00:29.8]} 26... Nf8 {[%clk 0:00:57.7]} 27. Rf7 {[%clk 0:00:30.3]} 27...
Kb8 {[%clk 0:00:55.8]} 28. Nb5 {[%clk 0:00:30.3]} 28... c6 {[%clk 0:00:39.7]}
29. Nxd6 {[%clk 0:00:20.7]} 29... Nc5 {[%clk 0:00:39.4]} 30. Nxb7 {[%clk
0:00:09.6]} 30... Nxb7 {[%clk 0:00:08.2]} 31. dxc6 {[%clk 0:00:09]} 31... Re8
{[%clk 0:00:03.4]} 32. Rxb7+ {[%clk 0:00:07.2]} 32... Ka8 {[%clk 0:00:03.7]} 33.
Rb5 {[%clk 0:00:06.7]} 1-0

[Event "*** Titled Tuesday Blitz"]
[Site "Chess.com"]
[Date "2020.12.01"]
[Round "3"]
[White "misterlamine"]
[Black "FearNoEvil12"]
[Result "0-1"]
[WhiteElo "2308"]
[BlackElo "2158"]
[TimeControl "180+1"]
[EndTime "10:28:13 PST"]
[Termination "FearNoEvil12 won by checkmate"]

1. d4 {[%clk 0:03:00.9]} 1... b5 {[%clk 0:02:59]} 2. Nf3 {[%clk 0:02:59.8]} 2...
a6 {[%clk 0:02:59.3]} 3. e4 {[%clk 0:02:59.2]} 3... Bb7 {[%clk 0:02:59.7]} 4.
Bd3 {[%clk 0:02:58.7]} 4... e6 {[%clk 0:03:00.1]} 5. O-O {[%clk 0:02:58.2]} 5...
Nf6 {[%clk 0:03:00.6]} 6. Re1 {[%clk 0:02:57.8]} 6... d6 {[%clk 0:03:01]} 7. Bg5
{[%clk 0:02:56.5]} 7... h6 {[%clk 0:02:59.5]} 8. Bh4 {[%clk 0:02:55.7]} 8... g5
{[%clk 0:02:59.5]} 9. Bg3 {[%clk 0:02:55.5]} 9... Nbd7 {[%clk 0:03:00]} 10. Nbd2
{[%clk 0:02:54]} 10... Rg8 {[%clk 0:03:00.2]} 11. Rc1 {[%clk 0:02:49.9]} 11...
h5 {[%clk 0:02:59.8]} 12. h4 {[%clk 0:02:47.6]} 12... gxh4 {[%clk 0:02:58.5]}
13. Nxh4 {[%clk 0:02:48.5]} 13... Bh6 {[%clk 0:02:53]} 14. c4 {[%clk 0:02:44.7]}
14... bxc4 {[%clk 0:02:51.2]} 15. Rxc4 {[%clk 0:02:42.9]} 15... Bg5 {[%clk
0:02:43.9]} 16. Nhf3 {[%clk 0:02:41.8]} 16... Ng4 {[%clk 0:02:33.1]} 17. Nxg5
{[%clk 0:02:38.8]} 17... Qxg5 {[%clk 0:02:31.6]} 18. Rxc7 {[%clk 0:02:36.5]}
18... Nxf2 {[%clk 0:02:24.8]} 19. Qf3 {[%clk 0:02:23.1]} 19... Nxd3 {[%clk
0:02:14]} 20. Qxd3 {[%clk 0:02:19.2]} 20... Rb8 {[%clk 0:02:08.8]} 21. Nf1
{[%clk 0:02:11.1]} 21... h4 {[%clk 0:02:07.4]} 22. Bxh4 {[%clk 0:02:11]} 22...
Qxh4 {[%clk 0:02:04.1]} 23. Re3 {[%clk 0:02:00.4]} 23... Qd8 {[%clk 0:01:59.8]}
24. Rc2 {[%clk 0:01:56.1]} 24... Nf6 {[%clk 0:01:55.7]} 25. d5 {[%clk
0:01:50.7]} 25... e5 {[%clk 0:01:51.1]} 26. Rf3 {[%clk 0:01:47.8]} 26... Bc8
{[%clk 0:01:42.5]} 27. Ne3 {[%clk 0:01:28.7]} 27... Ng4 {[%clk 0:01:39.7]} 28.
Nxg4 {[%clk 0:01:19.5]} 28... Bxg4 {[%clk 0:01:37.6]} 29. Rg3 {[%clk 0:01:19.6]}
29... Qh4 {[%clk 0:01:32]} 30. Rc7 {[%clk 0:01:16]} 30... Rxb2 {[%clk
0:00:55.9]} 31. Qf1 {[%clk 0:00:38.1]} 31... Rf8 {[%clk 0:00:16.7]} 32. Rgc3
{[%clk 0:00:32.5]} 32... Qd8 {[%clk 0:00:11.5]} 33. Qc4 {[%clk 0:00:30.6]} 33...
Rb1+ {[%clk 0:00:09.4]} 34. Rc1 {[%clk 0:00:30.4]} 34... Rxc1+ {[%clk 0:00:09]}
35. Qxc1 {[%clk 0:00:31.3]} 35... Bd7 {[%clk 0:00:08.4]} 36. Qc4 {[%clk
0:00:29.3]} 36... Rg8 {[%clk 0:00:08.5]} 37. Qc2 {[%clk 0:00:24.2]} 37... Qg5
{[%clk 0:00:08.5]} 38. Ra7 {[%clk 0:00:22.3]} 38... Ke7 {[%clk 0:00:08.7]} 39.
Rxa6 {[%clk 0:00:20.3]} 39... Qe3+ {[%clk 0:00:08.2]} 40. Kf1 {[%clk 0:00:19]}
40... Rg4 {[%clk 0:00:07.8]} 41. Qc7 {[%clk 0:00:16]} 41... Rf4# {[%clk
0:00:08.2]} 0-1

[Event "*** Titled Tuesday Blitz"]
[Site "Chess.com"]
[Date "2020.12.01"]
[Round "3"]
[White "Luklei18"]
[Black "Misi_95"]
[Result "1-0"]
[WhiteElo "2435"]
[BlackElo "2622"]
[TimeControl "180+1"]
[EndTime "10:28:14 PST"]
[Termination "Luklei18 won on time"]

1. c4 {[%clk 0:03:00.9]} 1... e5 {[%clk 0:02:58.5]} 2. Nc3 {[%clk 0:03:01.2]}
2... Nc6 {[%clk 0:02:58.6]} 3. e3 {[%clk 0:03:01.2]} 3... Nf6 {[%clk 0:02:53.9]}
4. Nf3 {[%clk 0:03:01.5]} 4... Bb4 {[%clk 0:02:51.7]} 5. Qc2 {[%clk 0:03:01.7]}
5... d6 {[%clk 0:02:49.2]} 6. Nd5 {[%clk 0:02:57]} 6... Ba5 {[%clk 0:02:47.4]}
7. a3 {[%clk 0:02:56.4]} 7... O-O {[%clk 0:02:36.2]} 8. b4 {[%clk 0:02:48.9]}
8... Bb6 {[%clk 0:02:36]} 9. Nxf6+ {[%clk 0:02:13.7]} 9... Qxf6 {[%clk
0:02:35.4]} 10. Bb2 {[%clk 0:02:14.3]} 10... Re8 {[%clk 0:02:22.2]} 11. Bd3
{[%clk 0:02:09.2]} 11... Qh6 {[%clk 0:02:08.7]} 12. Be4 {[%clk 0:02:04.7]} 12...
Bd7 {[%clk 0:01:27.5]} 13. h4 {[%clk 0:01:54.7]} 13... Rad8 {[%clk 0:01:15.5]}
14. Ng5 {[%clk 0:01:49]} 14... g6 {[%clk 0:01:15.2]} 15. Bd5 {[%clk 0:01:33.5]}
15... Rf8 {[%clk 0:01:14.3]} 16. O-O-O {[%clk 0:01:18.6]} 16... Bg4 {[%clk
0:00:37.4]} 17. f3 {[%clk 0:01:17.2]} 17... Bf5 {[%clk 0:00:37.2]} 18. Ne4
{[%clk 0:01:09.3]} 18... a5 {[%clk 0:00:32.9]} 19. b5 {[%clk 0:00:58.3]} 19...
Ne7 {[%clk 0:00:30.7]} 20. Bxb7 {[%clk 0:00:35.1]} 20... Bxe4 {[%clk 0:00:25.3]}
21. Bxe4 {[%clk 0:00:31.8]} 21... f5 {[%clk 0:00:25]} 22. Bd5+ {[%clk
0:00:29.6]} 22... Nxd5 {[%clk 0:00:25]} 23. cxd5 {[%clk 0:00:30.5]} 23... Qg7
{[%clk 0:00:21.1]} 24. h5 {[%clk 0:00:27.2]} 24... g5 {[%clk 0:00:20.6]} 25. h6
{[%clk 0:00:26.2]} 25... Qf7 {[%clk 0:00:20.7]} 26. Qc4 {[%clk 0:00:23]} 26...
Bc5 {[%clk 0:00:18.6]} 27. f4 {[%clk 0:00:22.5]} 27... Rfe8 {[%clk 0:00:08.2]}
28. fxg5 {[%clk 0:00:20.9]} 28... Qg6 {[%clk 0:00:08.1]} 29. g4 {[%clk
0:00:20.2]} 29... fxg4 {[%clk 0:00:07.3]} 30. Qxg4 {[%clk 0:00:17.5]} 30... Rf8
{[%clk 0:00:06.4]} 31. Qh5 {[%clk 0:00:15.7]} 31... Qd3 {[%clk 0:00:05.5]} 32.
g6 {[%clk 0:00:13.2]} 32... hxg6 {[%clk 0:00:05.3]} 33. h7+ {[%clk 0:00:13.1]}
33... Kh8 {[%clk 0:00:05.9]} 34. Bxe5+ {[%clk 0:00:12.5]} 1-0